fUST/lending_fUST_20250505
["ID","MTS","AMOUNT","RATE_DAILY","PERIOD"]
[359917393,1746419444176,-3321.87192635,0.0003999,2]
[359917394,1746419444185,-400.0,0.0004,14]
[359917395,1746419444195,-400.0,0.0004,14]
[359917396,1746419444203,-26608.76691574,0.0004,30]
[359917397,1746419444452,-2256.79516921,0.0004,30]
[359917399,1746419445776,-400.0,0.00035616,14]
[359917400,1746419445786,-70.76,0.0004,30]
[359917444,1746419446564,-225.10164376,0.00035616,14]
[359917446,1746419446575,-174.89835624,0.00035616,14]
[359917448,1746419446586,-400.0,0.00035616,14]
[359917450,1746419446595,-454.81,0.0003589,14]
[359917452,1746419446604,-400.0,0.0003589,14]
[359917454,1746419446614,-400.0,0.00036164,14]
[359917456,1746419446623,-400.0,0.00036438,14]
[359917458,1746419446632,-400.0,0.00036712,14]
[359917460,1746419446641,-364.36,0.00036986,14]
[359917462,1746419446651,-76260.84247152,0.0004,30]
[359917464,1746419446663,-521.30643636,0.0004,30]
[359917539,1746419597270,-427.13973276,0.00035515,2]
[359917540,1746419601707,-166.0,0.00035515,2]
[359917550,1746420005645,-166.27529339,0.00025,2]
[359917551,1746420008966,-180.52612848,0.00025,2]
[359917552,1746420013326,-158.88601231,0.00025,2]
[359917553,1746420016557,-171.08296106,0.00025,2]
[359917554,1746420338142,-276.0,0.00026574,2]
[359917555,1746420338162,-280.089592,0.00027397,2]
[359917556,1746420338181,-180.52612848,0.00031944,8]
[359917557,1746420338200,-31.44782989,0.00032877,2]
[359917558,1746420349096,-133.20678387,0.00032877,2]
[359917559,1746420349117,-280.089592,0.00033165,2]
[359917560,1746420349138,-250.0,0.00033558,2]
[359917561,1746420349158,-221.004021,0.00033696,2]
[359917562,1746420349178,-156.18277155,0.00034123,2]
[359917563,1746420349199,-237.59684814,0.00034222,2]
[359917569,1746420429085,-1664.08059074,0.00034223,2]
[359917570,1746420432088,-13848.08836836,0.00034223,2]
[359917571,1746420432113,-2144.0730864,0.00034467,2]
[359917572,1746420432135,-500.0,0.0003551,7]
[359917573,1746420432156,-500.0,0.0003551,7]
[359917574,1746420432189,-454.6478027,0.0003551,7]
[359917575,1746420441105,-45.3521973,0.0003551,7]
[359917576,1746420441128,-500.0,0.0003551,7]
[359917577,1746420441152,-327.70417143,0.0003551,7]
[359917578,1746420441173,-500.0,0.0003551,7]
[359917579,1746420441203,-176.76167229,0.0003551,7]
[359917580,1746420441228,-500.0,0.0003551,7]
[359917581,1746420441252,-500.0,0.0003551,7]
[359917582,1746420441275,-265.04542807,0.0003551,7]
[359917583,1746420453113,-234.95457193,0.0003551,7]
[359917584,1746420453132,-500.0,0.0003551,7]
[359917585,1746420453164,-500.0,0.0003551,7]
[359917586,1746420453186,-500.0,0.0003551,7]
[359917587,1746420453207,-500.0,0.0003551,7]
[359917588,1746420453228,-500.0,0.0003551,7]
[359917589,1746420453249,-211.60397713,0.0003551,7]
[359917594,1746420558965,1444.78451539,0.00025204,2]
[359917595,1746420558985,623.21548461,0.00025204,2]
[359917598,1746420565168,202.9054108,0.0003341,2]
[359917600,1746420609626,584.0226661,0.00023,2]
[359917601,1746420609646,562.00970433,0.00023,2]
[359917602,1746420624586,166.0,0.00034299,2]
[359917611,1746420632772,-236.17449217,0.000354,120]
[359917612,1746420632784,-781.24024026,0.000354,120]
[359917613,1746420632793,-2019.93268436,0.000355,7]
[359917614,1746420632803,-216.0,0.00035509,2]
[359917615,1746420632812,-215.649,0.00035515,42]
[359917616,1746420632822,-82.47285306,0.00035515,2]
[359917617,1746420632831,-201.82409072,0.00035516,2]
[359917618,1746420632845,-500.0,0.00035615,7]
[359917619,1746420632854,-500.0,0.00035615,7]
[359917620,1746420632864,-500.0,0.00035615,7]
[359917621,1746420632873,-422.74906783,0.00035615,7]
[359917622,1746420632883,-283.1639281,0.00035615,7]
[359917623,1746420632892,-15781.88169285,0.00035616,2]
[359917624,1746420632901,-347.25004654,0.00035616,14]
[359917626,1746420632911,-400.0,0.00035616,14]
[359917627,1746420632920,-400.0,0.00035616,14]
[359917628,1746420632929,-400.0,0.00035616,14]
[359917629,1746420632939,-412.87025765,0.00035616,14]
[359917630,1746420632948,-400.0,0.00035616,14]
[359917631,1746420632958,-200.0,0.00035616,14]
[359917632,1746420632967,-400.0,0.00035616,14]
[359917633,1746420632977,-400.0,0.00035616,14]
[359917634,1746420632987,-400.0,0.00035616,14]
[359917635,1746420633000,-400.0,0.00035616,14]
[359917636,1746420633009,-400.0,0.00035616,14]
[359917637,1746420633019,-359.88881806,0.00035616,14]
[359917638,1746420633028,-401.27280583,0.00035616,14]
[359917639,1746420633037,-246.57267011,0.00035616,14]
[359917640,1746420633046,-400.0,0.00035616,14]
[359917641,1746420633056,-400.0,0.00035616,2]
[359917642,1746420633066,-154.81743692,0.00035616,14]
[359917643,1746420633075,-159.60222572,0.00035616,14]
[359917644,1746420633085,-400.0,0.00035616,14]
[359917645,1746420633094,-400.0,0.00035616,14]
[359917646,1746420633104,-400.0,0.00035616,14]
[359917647,1746420633113,-400.0,0.00035616,14]
[359917648,1746420633123,-400.0,0.00035616,14]
[359917649,1746420633133,-400.0,0.00035616,14]
[359917650,1746420633143,-400.0,0.00035616,14]
[359917651,1746420633153,-400.0,0.00035616,14]
[359917652,1746420633162,-400.0,0.00035616,14]
[359917653,1746420633172,-400.0,0.00035616,14]
[359917654,1746420633181,-400.0,0.00035616,14]
[359917655,1746420633191,-1000.0,0.00035616,14]
[359917656,1746420633200,-407.16933121,0.00035616,14]
[359917657,1746420633209,-400.0,0.00035616,14]
[359917658,1746420633219,-400.0,0.00035616,14]
[359917659,1746420633229,-400.0,0.00035616,14]
[359917660,1746420633238,-400.0,0.00035616,14]
[359917661,1746420633248,-509.15391445,0.00035616,14]
[359917662,1746420633258,-400.0,0.00035616,14]
[359917663,1746420633267,-509.0008199,0.00035616,14]
[359917664,1746420633276,-400.0,0.00035616,14]
[359917665,1746420633286,-400.0,0.00035616,14]
[359917666,1746420633295,-400.0,0.00035616,14]
[359917667,1746420633304,-400.0,0.00035616,14]
[359917668,1746420633314,-400.0,0.00035616,14]
[359917669,1746420633323,-400.0,0.00035616,14]
[359917670,1746420633333,-400.0,0.00035616,14]
[359917671,1746420633342,-400.0,0.00035616,14]
[359917672,1746420633352,-503.05921767,0.00035616,14]
[359917673,1746420633361,-405.65555973,0.00035616,14]
[359917674,1746420633371,-404.66918471,0.00035616,14]
[359917675,1746420633381,-400.0,0.00035616,14]
[359917676,1746420633391,-400.0,0.00035616,14]
[359917677,1746420633400,-221.32761638,0.00035616,14]
[359917678,1746420633410,-400.0,0.00035616,14]
[359917679,1746420633420,-400.0,0.00035616,14]
[359917680,1746420633429,-342.08903136,0.00035616,14]
[359917681,1746420633439,-400.0,0.00035616,14]
[359917682,1746420633449,-400.0,0.00035616,14]
[359917683,1746420633460,-400.0,0.00035616,14]
[359917684,1746420633470,-400.0,0.00035616,14]
[359917685,1746420633479,-400.0,0.00035616,14]
[359917686,1746420633488,-400.0,0.00035616,14]
[359917687,1746420633498,-400.0,0.00035616,14]
[359917688,1746420633508,-425.85352422,0.00035616,14]
[359917689,1746420633518,-338.71158624,0.00035616,14]
[359917690,1746420633527,-406.14035072,0.00035616,14]
[359917691,1746420633538,-471.95,0.00035616,14]
[359917692,1746420633548,-400.0,0.00035616,14]
[359917693,1746420633558,-400.0,0.00035616,14]
[359917694,1746420633567,-221.48980542,0.00035616,14]
[359917695,1746420633577,-400.0,0.00035616,14]
[359917696,1746420633586,-400.0,0.00035616,14]
[359917697,1746420633596,-400.0,0.00035616,14]
[359917698,1746420633605,-400.0,0.00035616,14]
[359917699,1746420633615,-400.0,0.00035616,14]
[359917700,1746420633624,-400.0,0.00035616,14]
[359917701,1746420633634,-400.0,0.00035616,14]
[359917702,1746420633644,-400.0,0.00035616,14]
[359917703,1746420633654,-400.0,0.00035616,14]
[359917704,1746420633663,-400.0,0.00035616,14]
[359917705,1746420633673,-400.0,0.00035616,14]
[359917706,1746420633682,-400.0,0.00035616,14]
[359917707,1746420633692,-400.0,0.00035616,14]
[359917708,1746420633701,-400.0,0.00035616,14]
[359917709,1746420633711,-400.0,0.00035616,14]
[359917710,1746420633720,-400.0,0.00035616,14]
[359917711,1746420633729,-400.0,0.00035616,14]
[359917712,1746420633739,-400.0,0.00035616,14]
[359917713,1746420633748,-400.0,0.00035616,14]
[359917714,1746420633758,-400.0,0.00035616,14]
[359917715,1746420633768,-400.0,0.00035616,14]
[359917716,1746420633778,-400.0,0.00035616,14]
[359917717,1746420633788,-400.0,0.00035616,14]
[359917718,1746420633797,-400.0,0.00035616,14]
[359917719,1746420633807,-507.14139059,0.00035616,14]
[359917720,1746420633817,-400.0,0.00035616,14]
[359917721,1746420633826,-400.0,0.00035616,14]
[359917722,1746420633836,-400.0,0.00035616,14]
[359917723,1746420633846,-334.86292051,0.00035616,14]
[359917724,1746420633855,-400.0,0.00035616,14]
[359917725,1746420633865,-400.0,0.00035616,14]
[359917726,1746420633874,-400.0,0.00035616,14]
[359917727,1746420633884,-400.0,0.00035616,14]
[359917728,1746420633893,-410.69020331,0.00035616,14]
[359917729,1746420633903,-400.0,0.00035616,14]
[359917730,1746420633914,-400.0,0.00035616,14]
[359917731,1746420633923,-539.08996394,0.00035616,14]
[359917732,1746420633932,-511.12,0.00035616,14]
[359917733,1746420633942,-400.0,0.00035616,14]
[359917734,1746420633951,-400.0,0.00035616,14]
[359917735,1746420633961,-400.0,0.00035616,14]
[359917736,1746420633970,-400.0,0.00035616,14]
[359917737,1746420633979,-400.0,0.00035616,14]
[359917738,1746420633989,-400.0,0.00035616,14]
[359917739,1746420633998,-400.0,0.00035616,14]
[359917740,1746420634007,-400.0,0.00035616,14]
[359917741,1746420634017,-400.0,0.00035616,14]
[359917742,1746420634026,-400.88522322,0.00035616,14]
[359917743,1746420634035,-400.0,0.00035616,14]
[359917744,1746420634045,-400.0,0.00035616,14]
[359917745,1746420634055,-400.0,0.00035616,14]
[359917746,1746420634064,-408.12068839,0.00035616,14]
[359917747,1746420634073,-400.0,0.00035616,14]
[359917748,1746420634083,-400.0,0.00035616,14]
[359917749,1746420634093,-400.87367592,0.00035616,14]
[359917750,1746420634103,-400.0,0.00035616,14]
[359917751,1746420634112,-412.99182447,0.00035616,14]
[359917752,1746420634122,-400.0,0.00035616,14]
[359917753,1746420634131,-400.0,0.00035616,14]
[359917754,1746420634141,-502.71852527,0.00035616,14]
[359917755,1746420634151,-400.0,0.00035616,14]
[359917756,1746420634160,-400.0,0.00035616,14]
[359917757,1746420634170,-400.0,0.00035616,14]
[359917758,1746420634180,-400.0,0.00035616,14]
[359917759,1746420634189,-408.32,0.00035616,14]
[359917760,1746420634199,-400.0,0.00035616,14]
[359917761,1746420634208,-400.0,0.00035616,14]
[359917762,1746420634217,-501.96914026,0.00035616,14]
[359917763,1746420634227,-400.0,0.00035616,14]
[359917764,1746420634237,-400.0,0.00035616,14]
[359917765,1746420634247,-400.0,0.00035616,14]
[359917766,1746420634256,-400.0,0.00035616,14]
[359917767,1746420634266,-400.0,0.00035616,14]
[359917768,1746420634389,-500.0,0.00035616,14]
[359917769,1746420634399,-449.8,0.00035616,14]
[359917770,1746420634410,-400.0,0.00035616,14]
[359917771,1746420634419,-407.95341934,0.00035616,14]
[359917772,1746420634429,-400.0,0.00035616,14]
[359917773,1746420634438,-400.0,0.00035616,14]
[359917774,1746420634447,-400.0,0.00035616,14]
[359917775,1746420634457,-400.0,0.00035616,14]
[359917776,1746420634466,-400.0,0.00035616,14]
[359917777,1746420634489,-400.0,0.00035616,14]
[359917778,1746420634500,-400.0,0.00035616,14]
[359917779,1746420634511,-400.0,0.00035616,14]
[359917780,1746420634522,-401.55,0.00035616,14]
[359917781,1746420634534,-400.0,0.00035616,14]
[359917782,1746420634545,-400.0,0.00035616,14]
[359917783,1746420634556,-400.0,0.00035616,14]
[359917784,1746420634567,-400.0,0.00035616,14]
[359917785,1746420634577,-400.0,0.00035616,14]
[359917786,1746420634586,-400.0,0.00035616,14]
[359917787,1746420634596,-412.33,0.00035616,14]
[359917788,1746420634606,-400.0,0.00035616,14]
[359917789,1746420634617,-400.0,0.00035616,14]
[359917790,1746420634627,-400.0,0.00035616,14]
[359917791,1746420634637,-400.0,0.00035616,14]
[359917792,1746420634647,-400.0,0.00035616,14]
[359917793,1746420634657,-400.0,0.00035616,14]
[359917794,1746420634666,-400.0,0.00035616,14]
[359917795,1746420634676,-400.0,0.00035616,14]
[359917796,1746420634686,-400.0,0.00035616,14]
[359917797,1746420634696,-400.0,0.00035616,14]
[359917798,1746420634706,-400.0,0.00035616,14]
[359917799,1746420634716,-400.0,0.00035616,14]
[359917800,1746420634726,-400.0,0.00035616,14]
[359917801,1746420634736,-400.0,0.00035616,14]
[359917802,1746420634746,-400.0,0.00035616,14]
[359917803,1746420634756,-400.0,0.00035616,14]
[359917804,1746420634765,-400.0,0.00035616,14]
[359917805,1746420634775,-400.0,0.00035616,14]
[359917806,1746420634785,-400.0,0.00035616,14]
[359917807,1746420634795,-400.0,0.00035616,14]
[359917808,1746420634805,-400.0,0.00035616,14]
[359917809,1746420634815,-400.0,0.00035616,14]
[359917810,1746420634824,-400.0,0.00035616,14]
[359917811,1746420634834,-400.0,0.00035616,14]
[359917812,1746420634843,-400.0,0.00035616,14]
[359917813,1746420634853,-400.0,0.00035616,14]
[359917814,1746420634863,-400.0,0.00035616,14]
[359917815,1746420634873,-400.0,0.00035616,2]
[359917816,1746420634882,-400.0,0.00035616,14]
[359917817,1746420634892,-400.0,0.00035616,14]
[359917818,1746420634901,-400.0,0.00035616,14]
[359917819,1746420634911,-400.0,0.00035616,14]
[359917820,1746420634921,-400.0,0.00035616,14]
[359917821,1746420634931,-400.0,0.00035616,14]
[359917822,1746420634941,-400.0,0.00035616,14]
[359917823,1746420634951,-400.0,0.00035616,14]
[359917824,1746420634960,-400.0,0.00035616,14]
[359917825,1746420634970,-400.0,0.00035616,14]
[359917826,1746420634980,-400.0,0.00035616,14]
[359917827,1746420634989,-404.88663918,0.00035616,14]
[359917828,1746420634999,-313.72,0.00035616,14]
[359917829,1746420635008,-400.0,0.00035616,14]
[359917830,1746420635018,-400.0,0.00035616,14]
[359917831,1746420635028,-400.0,0.00035616,14]
[359917832,1746420635039,-400.0,0.00035616,14]
[359917833,1746420635049,-400.0,0.00035616,14]
[359917834,1746420635058,-400.0,0.00035616,14]
[359917835,1746420635067,-400.0,0.00035616,14]
[359917836,1746420635077,-201.60990659,0.00035616,14]
[359917837,1746420635086,-400.0,0.00035616,14]
[359917838,1746420635096,-400.0,0.00035616,14]
[359917839,1746420635106,-400.0,0.00035616,14]
[359917840,1746420635115,-400.0,0.00035616,14]
[359917841,1746420635125,-400.0,0.00035616,14]
[359917842,1746420635135,-400.0,0.00035616,14]
[359917843,1746420635144,-400.0,0.00035616,14]
[359917844,1746420635154,-400.0,0.00035616,14]
[359917845,1746420635163,-400.0,0.00035616,14]
[359917846,1746420635173,-400.0,0.00035616,14]
[359917847,1746420635182,-400.0,0.00035616,14]
[359917848,1746420635192,-400.0,0.00035616,14]
[359917849,1746420635202,-400.0,0.00035616,14]
[359917850,1746420635211,-400.0,0.00035616,14]
[359917851,1746420635221,-400.0,0.00035616,14]
[359917852,1746420635231,-400.0,0.00035616,14]
[359917853,1746420635241,-400.0,0.00035616,14]
[359917854,1746420635250,-400.0,0.00035616,14]
[359917855,1746420635259,-400.0,0.00035616,14]
[359917856,1746420635269,-400.0,0.00035616,5]
[359917857,1746420635279,-278.23207799,0.00035616,14]
[359917858,1746420635288,-500.0,0.00035673,2]
[359917859,1746420635298,-309.1594888,0.00035673,5]
[359917860,1746420635307,-500.0,0.00035673,5]
[359917861,1746420635318,-500.0,0.00035673,2]
[359917862,1746420635327,-505.01105645,0.00035673,5]
[359917863,1746420635337,-502.33294583,0.00035673,5]
[359917864,1746420635347,-504.5926729,0.00035673,2]
[359917865,1746420635356,-500.3480643,0.00035673,5]
[359917866,1746420635366,-500.0,0.00035673,5]
[359917867,1746420635376,-500.0,0.00035673,5]
[359917868,1746420635385,-500.0,0.00035673,5]
[359917869,1746420635394,-500.0,0.00035673,5]
[359917870,1746420635403,-504.82938854,0.00035673,5]
[359917871,1746420635413,-500.0,0.00035673,5]
[359917872,1746420635423,-400.0,0.0003589,14]
[359917873,1746420635432,-400.0,0.0003589,14]
[359917874,1746420635442,-400.0,0.0003589,14]
[359917875,1746420635452,-400.0,0.0003589,2]
[359917876,1746420635461,-524.35,0.0003589,14]
[359917877,1746420635471,-400.0,0.0003589,14]
[359917878,1746420635481,-443.44,0.0003589,14]
[359917879,1746420635491,-400.0,0.0003589,14]
[359917880,1746420635501,-400.0,0.0003589,14]
[359917881,1746420635511,-366.3,0.0003589,14]
[359917882,1746420635521,-1000.0,0.0003589,14]
[359917883,1746420635531,-400.0,0.0003589,14]
[359917884,1746420635540,-400.0,0.0003589,14]
[359917885,1746420635550,-400.0,0.0003589,14]
[359917886,1746420635560,-400.0,0.0003589,14]
[359917887,1746420635570,-400.0,0.0003589,14]
[359917888,1746420635579,-400.0,0.0003589,14]
[359917889,1746420635589,-400.0,0.0003589,14]
[359917890,1746420635598,-400.0,0.0003589,14]
[359917891,1746420635608,-400.0,0.0003589,14]
[359917892,1746420635618,-400.0,0.0003589,14]
[359917893,1746420635627,-400.0,0.0003589,14]
[359917894,1746420635636,-400.0,0.0003589,14]
[359917895,1746420635646,-400.0,0.0003589,14]
[359917896,1746420635655,-400.0,0.0003589,14]
[359917897,1746420635665,-400.0,0.0003589,14]
[359917898,1746420635675,-400.0,0.0003589,14]
[359917899,1746420635685,-527.03,0.0003589,14]
[359917900,1746420635694,-157.91,0.0003589,14]
[359917901,1746420635703,-400.0,0.0003589,14]
[359917902,1746420635713,-400.0,0.0003589,14]
[359917903,1746420635722,-400.0,0.0003589,14]
[359917904,1746420635732,-483.74,0.0003589,14]
[359917905,1746420635742,-401.72,0.0003589,14]
[359917906,1746420635751,-400.0,0.0003589,14]
[359917907,1746420635761,-272.77,0.0003589,14]
[359917908,1746420635771,-325.18,0.0003589,14]
[359917909,1746420635780,-400.0,0.0003589,14]
[359917910,1746420635790,-400.0,0.0003589,14]
[359917911,1746420635799,-209.73,0.0003589,14]
[359917912,1746420635809,-400.0,0.0003589,14]
[359917913,1746420635818,-400.0,0.0003589,14]
[359917914,1746420635828,-400.0,0.0003589,14]
[359917915,1746420635838,-400.0,0.0003589,14]
[359917916,1746420635848,-400.0,0.0003589,14]
[359917917,1746420635857,-199.21194591,0.0003589,14]
[359917918,1746420635867,-510.35717871,0.0003589,14]
[359917919,1746420635876,-507.25837536,0.0003589,14]
[359917920,1746420635886,-400.0,0.0003589,14]
[359917921,1746420635895,-400.0,0.0003589,14]
[359917922,1746420635905,-511.12,0.0003589,14]
[359917923,1746420635916,-400.0,0.0003589,14]
[359917924,1746420635925,-400.0,0.0003589,14]
[359917925,1746420635935,-400.0,0.0003589,14]
[359917926,1746420635945,-400.0,0.0003589,14]
[359917927,1746420635954,-397.75,0.0003589,14]
[359917928,1746420635963,-151.50021698,0.0003589,14]
[359917929,1746420635973,-400.0,0.0003589,14]
[359917930,1746420635982,-400.0,0.0003589,14]
[359917931,1746420635992,-400.0,0.0003589,14]
[359917932,1746420636002,-407.16369777,0.0003589,14]
[359917933,1746420636010,-384.19202347,0.0003589,14]
[359917934,1746420636020,-400.0,0.0003589,14]
[359917935,1746420636029,-400.0,0.0003589,14]
[359917936,1746420636038,-400.0,0.0003589,14]
[359917937,1746420636047,-400.0,0.0003589,14]
[359917938,1746420636057,-400.0,0.0003589,14]
[359917939,1746420636066,-400.0,0.0003589,14]
[359917940,1746420636075,-282.03015919,0.0003589,14]
[359917941,1746420636085,-400.0,0.0003589,14]
[359917942,1746420636095,-396.62389319,0.0003589,14]
[359917943,1746420636105,-400.0,0.0003589,14]
[359917944,1746420636116,-400.0,0.0003589,14]
[359917945,1746420636126,-400.0,0.0003589,14]
[359917946,1746420636135,-506.44881868,0.0003589,14]
[359917947,1746420636144,-400.0,0.0003589,14]
[359917948,1746420636154,-400.0,0.0003589,14]
[359917949,1746420636163,-400.0,0.0003589,14]
[359917950,1746420636173,-400.0,0.0003589,14]
[359917951,1746420636182,-400.0,0.0003589,14]
[359917952,1746420636191,-323.47,0.0003589,14]
[359917953,1746420636201,-401.34,0.0003589,14]
[359917954,1746420636210,-400.0,0.0003589,14]
[359917955,1746420636221,-400.0,0.0003589,14]
[359917956,1746420636230,-400.0,0.0003589,14]
[359917957,1746420636240,-400.0,0.0003589,14]
[359917958,1746420636250,-400.0,0.0003589,14]
[359917959,1746420636259,-400.0,0.0003589,14]
[359917960,1746420636269,-217.99218633,0.0003589,14]
[359917961,1746420636278,-400.0,0.0003589,14]
[359917962,1746420636288,-400.0,0.0003589,14]
[359917963,1746420636298,-400.0,0.0003589,14]
[359917964,1746420636308,-400.0,0.0003589,2]
[359917965,1746420636318,-400.0,0.0003589,14]
[359917966,1746420636327,-400.0,0.0003589,14]
[359917967,1746420636337,-400.0,0.0003589,14]
[359917968,1746420636347,-400.0,0.0003589,14]
[359917969,1746420636356,-400.0,0.0003589,14]
[359917970,1746420636366,-400.0,0.0003589,14]
[359917971,1746420636375,-400.0,0.0003589,14]
[359917972,1746420636385,-537.34,0.0003589,14]
[359917973,1746420636395,-249.57,0.0003589,14]
[359917974,1746420636404,-401.34718263,0.0003589,14]
[359917975,1746420636413,-400.0,0.0003589,14]
[359917976,1746420636426,-400.0,0.0003589,14]
[359917977,1746420636436,-400.0,0.0003589,14]
[359917978,1746420636445,-305.89643462,0.0003589,14]
[359917979,1746420636456,-400.0,0.0003589,14]
[359917980,1746420636466,-209.93,0.0003589,14]
[359917981,1746420636475,-169.13,0.0003589,14]
[359917982,1746420636485,-400.0,0.0003589,14]
[359917983,1746420636498,-400.0,0.0003589,5]
[359917984,1746420636507,-495.25768979,0.000359,33]
[359917985,1746420636517,-791.9216,0.00036,120]
[359917986,1746420636526,-862.49,0.00036,7]
[359917987,1746420636538,-595.96683962,0.00036064,5]
[359917988,1746420636547,-495.25768979,0.00036072,34]
[359917989,1746420636556,-421.83547488,0.00036101,2]
[359917990,1746420636566,-501.57303746,0.00036163,14]
[359917991,1746420636575,-523.9596115,0.00036163,14]
[359917992,1746420636584,-400.0,0.00036163,14]
[359917993,1746420636593,-400.0,0.00036163,14]
[359917994,1746420636602,-400.0,0.00036164,14]
[359917995,1746420636611,-400.0,0.00036164,14]
[359917996,1746420636621,-400.0,0.00036164,2]
[359917997,1746420636630,-359.37,0.00036164,14]
[359917998,1746420636638,-553.1659952,0.00036164,14]
[359917999,1746420636647,-400.0,0.00036164,14]
[359918000,1746420636657,-400.0,0.00036164,14]
[359918001,1746420636666,-400.0,0.00036164,14]
[359918002,1746420636675,-209.88427423,0.00036164,14]
[359918003,1746420636684,-202.79043872,0.00036164,14]
[359918004,1746420636693,-400.0,0.00036164,14]
[359918005,1746420636702,-304.83728023,0.00036164,14]
[359918006,1746420636711,-400.0,0.00036164,14]
[359918007,1746420636720,-400.0,0.00036164,14]
[359918008,1746420636729,-400.0,0.00036164,14]
[359918009,1746420636738,-400.0,0.00036164,14]
[359918010,1746420636747,-400.0,0.00036164,14]
[359918011,1746420636756,-400.0,0.00036164,14]
[359918012,1746420636766,-400.0,0.00036164,14]
[359918013,1746420636775,-400.0,0.00036164,14]
[359918014,1746420636785,-186.19,0.00036164,14]
[359918015,1746420636795,-184.6,0.00036164,14]
[359918016,1746420636805,-400.0,0.00036164,14]
[359918017,1746420636815,-400.0,0.00036164,14]
[359918018,1746420636824,-400.0,0.00036164,14]
[359918019,1746420636834,-400.0,0.00036164,14]
[359918020,1746420636843,-400.0,0.00036164,14]
[359918021,1746420636853,-400.0,0.00036164,14]
[359918022,1746420636863,-400.0,0.00036164,14]
[359918023,1746420636872,-511.12,0.00036164,14]
[359918024,1746420636882,-400.0,0.00036164,14]
[359918025,1746420636892,-348.37,0.00036164,14]
[359918026,1746420636902,-291.33,0.00036164,14]
[359918027,1746420636911,-400.0,0.00036164,14]
[359918028,1746420636921,-400.0,0.00036164,14]
[359918029,1746420636931,-393.17717688,0.00036164,14]
[359918030,1746420636940,-153.26,0.00036164,14]
[359918031,1746420636950,-433.81,0.00036164,14]
[359918032,1746420636960,-400.0,0.00036164,14]
[359918033,1746420636970,-400.0,0.00036164,14]
[359918034,1746420636980,-400.0,0.00036164,14]
[359918035,1746420636989,-400.0,0.00036164,14]
[359918036,1746420636999,-400.0,0.00036164,14]
[359918037,1746420637009,-400.0,0.00036164,14]
[359918038,1746420637019,-400.0,0.00036164,14]
[359918039,1746420637029,-489.64,0.00036164,14]
[359918040,1746420637039,-400.0,0.00036164,14]
[359918041,1746420637048,-400.0,0.00036164,14]
[359918042,1746420637058,-539.59,0.00036164,14]
[359918043,1746420637067,-400.0,0.00036164,14]
[359918044,1746420637077,-400.0,0.00036164,14]
[359918045,1746420637087,-400.0,0.00036164,2]
[359918046,1746420637096,-400.0,0.00036164,14]
[359918047,1746420637106,-400.0,0.00036164,14]
[359918048,1746420637115,-400.0,0.00036164,14]
[359918049,1746420637125,-439.49093274,0.00036164,14]
[359918050,1746420637134,-400.0,0.00036164,14]